bitfinex-derivatives/quotes_BTCF0:USTF0_20251125
["timestamp","ask_amount","ask_price","bid_price","bid_amount"]
[1764038622069,0.41903063,87653.0,87652.0,0.04443]
[1764038622864,0.41803063,87653.0,87652.0,0.04443]
[1764038623071,0.05723063,87653.0,87652.0,0.08539833]
[1764038623273,0.05723063,87653.0,87652.0,0.04443]
[1764038624669,0.05723063,87653.0,87652.0,0.08539833]
[1764038625268,0.05723063,87653.0,87652.0,0.04443]
[1764038626565,0.05723063,87653.0,87652.0,0.0558427]
[1764038626868,0.40626114,87661.0,87660.0,0.0698617]
[1764038627174,0.40626114,87661.0,87660.0,0.05845]
[1764038627175,0.40845917,87661.0,87660.0,0.05845]
[1764038628868,0.40945917,87661.0,87660.0,0.05845]
[1764038629068,0.41045917,87661.0,87660.0,0.05251584]
[1764038629374,0.04529,87658.0,87657.0,0.05251584]
[1764038629575,0.04748803,87658.0,87657.0,0.07558584]
[1764038629771,0.04748803,87658.0,87657.0,0.03069584]
[1764038630361,0.04748803,87658.0,87657.0,0.07558584]
[1764038630668,0.04748803,87658.0,87657.0,0.04489]
[1764038630868,0.36197114,87661.0,87660.0,0.05845]
[1764038631370,0.00117114,87661.0,87660.0,0.05845]
[1764038631768,0.00017114,87661.0,87660.0,0.05845]
[1764038632168,0.04865917,87661.0,87660.0,0.05845]
[1764038632573,0.04965917,87661.0,87660.0,0.05845]
[1764038632769,0.00436917,87661.0,87660.0,0.05845]
[1764038632976,0.00217114,87661.0,87660.0,0.05845]
[1764038633174,0.3608,87672.0,87660.0,0.05845]
[1764038633175,0.3608,87672.0,87671.0,0.04489]
[1764038633376,0.3608,87672.0,87671.0,0.0563002]
[1764038633573,0.40828803,87672.0,87671.0,0.07557839]
[1764038633969,0.04748803,87672.0,87671.0,0.07557839]
[1764038634168,0.04748803,87672.0,87671.0,0.04489]
[1764038634871,0.04848803,87672.0,87671.0,0.04489]
[1764038635378,0.04948803,87672.0,87671.0,0.04489]
[1764038640075,0.02717803,87672.0,87671.0,0.04489]
[1764038640288,0.002,87672.0,87671.0,0.04489]
[1764038640476,0.00017114,87680.0,87679.0,0.0550192]
[1764038641775,0.00217114,87680.0,87679.0,0.0550192]
[1764038642789,0.00117114,87680.0,87679.0,0.0550192]
[1764038643601,0.0344671,87696.0,87690.0,0.01376]
[1764038643793,0.0567071,87696.0,87695.0,0.04361]
[1764038644096,0.05890513,87696.0,87695.0,0.04361]
[1764038644283,0.01360513,87696.0,87695.0,0.04361]
[1764038644488,0.3608,87699.0,87698.0,0.04361]
[1764038644689,0.40829803,87699.0,87698.0,0.04361]
[1764038645196,0.04749803,87699.0,87698.0,0.04361]
[1764038645395,0.02525803,87699.0,87698.0,0.04361]
[1764038645595,0.02525803,87699.0,87698.0,0.07427803]
[1764038645596,0.00319803,87699.0,87698.0,0.07427803]
[1764038645897,0.00319803,87699.0,87698.0,0.04361]
[1764038646193,0.3608,87710.0,87709.0,0.04361]
[1764038646391,0.0078,87756.0,87709.0,0.04361]
[1764038646392,0.0453,87729.0,87728.0,0.04361]
[1764038646597,0.3153,87729.0,87728.0,0.0550128]
[1764038646798,0.29306,87729.0,87728.0,0.0550128]
[1764038646988,0.02306,87729.0,87728.0,0.0550128]
[1764038647194,0.04749803,87742.0,87741.0,0.02195]
[1764038647391,0.04749803,87742.0,87741.0,0.04361]
[1764038647788,0.02306,87746.0,87745.0,0.05737]
[1764038647994,0.0453,87746.0,87745.0,0.05737]
[1764038648192,0.4061,87753.0,87752.0,0.05737]
[1764038648397,0.36299803,87753.0,87752.0,0.05737]
[1764038648592,0.40829803,87753.0,87752.0,0.05737]
[1764038649097,0.04749803,87753.0,87752.0,0.05737]
[1764038649401,0.3608,87764.0,87752.0,0.05737]
[1764038649402,0.4061,87764.0,87763.0,0.04361]
[1764038649702,0.40829803,87764.0,87763.0,0.04361]
[1764038650092,0.40829803,87764.0,87763.0,0.02195]
[1764038650298,0.40829803,87764.0,87752.0,0.01376]
[1764038650299,0.0453,87753.0,87752.0,0.02195]
[1764038650495,0.04749803,87753.0,87752.0,0.02195]
[1764038650701,0.04849803,87753.0,87752.0,0.02195]
[1764038651204,0.04849803,87753.0,87752.0,0.04361]
[1764038651499,0.04349,87762.0,87761.0,0.0437]
[1764038651704,0.04568803,87762.0,87761.0,0.0437]
[1764038652506,0.04349,87753.0,87752.0,0.05756]
[1764038652701,0.04568803,87753.0,87752.0,0.05756]
[1764038653005,0.40429,87764.0,87763.0,0.0437]
[1764038653196,0.41788613,87764.0,87763.0,0.0437]
[1764038654693,0.40648803,87764.0,87763.0,0.0437]
[1764038655607,0.04349,87753.0,87752.0,0.02193]
[1764038655798,0.05708763,87753.0,87752.0,0.0437]
[1764038656303,0.05708763,87753.0,87752.0,0.02193]
[1764038657305,0.05708763,87753.0,87752.0,0.0437]
[1764038658306,0.05964645,87753.0,87752.0,0.0437]
[1764038659403,0.04349,87750.0,87749.0,0.38273]
[1764038659700,0.04568803,87750.0,87749.0,0.0437]
[1764038660306,0.04824685,87750.0,87749.0,0.0437]
[1764038661308,0.04349,87745.0,87744.0,0.04387094]
[1764038661507,0.05708863,87745.0,87744.0,0.04387094]
[1764038661695,0.05708863,87745.0,87744.0,0.00017094]
[1764038662095,0.05708863,87745.0,87744.0,0.04387094]
[1764038662307,0.05964745,87745.0,87744.0,0.04387094]
[1764038663009,0.04824685,87745.0,87744.0,0.04387094]
[1764038663508,0.04824685,87745.0,87744.0,0.02210094]
[1764038664905,0.05604685,87745.0,87744.0,0.00017094]
[1764038666403,0.04824685,87745.0,87744.0,0.00017094]
[1764038666610,0.04924685,87745.0,87744.0,0.04387094]
[1764038667210,0.04824685,87745.0,87744.0,0.04387094]
[1764038668211,0.04824685,87745.0,87744.0,0.02210094]
[1764038668715,0.04824685,87745.0,87744.0,0.04387094]
[1764038669216,0.04824685,87745.0,87744.0,0.05527164]
[1764038669705,0.04824685,87745.0,87744.0,0.04387094]
[1764038670906,0.00475685,87745.0,87744.0,0.04387094]
[1764038671307,0.02593685,87745.0,87744.0,0.04387094]
[1764038671801,0.04824685,87745.0,87744.0,0.04387094]
[1764038672206,0.04824685,87745.0,87744.0,0.05527164]
[1764038672403,0.00475685,87745.0,87744.0,0.05527164]
[1764038672802,0.00475685,87745.0,87744.0,0.41607164]
[1764038673012,0.00255882,87745.0,87744.0,0.41607164]
[1764038674309,0.04824685,87745.0,87744.0,0.44556164]
[1764038674510,0.02593685,87745.0,87744.0,0.40467094]
[1764038674712,0.00475685,87745.0,87744.0,0.40467094]
[1764038675113,0.00255882,87745.0,87744.0,0.40467094]
[1764038676110,0.02373882,87745.0,87744.0,0.40567094]
[1764038676310,0.00255882,87745.0,87744.0,0.40567094]
[1764038676510,0.00255882,87745.0,87744.0,0.40467094]
[1764038676710,0.00255882,87745.0,87744.0,0.40567094]
[1764038677319,0.00255882,87745.0,87744.0,0.40467094]
[1764038677909,0.04824685,87745.0,87744.0,0.40467094]
[1764038678412,0.04824685,87745.0,87744.0,0.00017094]
[1764038679114,0.04824685,87745.0,87744.0,0.04387094]
[1764038681122,0.04924685,87745.0,87744.0,0.04387094]
[1764038684019,0.04824685,87745.0,87744.0,0.04387094]
[1764038685719,0.04824685,87745.0,87744.0,0.00017094]
[1764038685720,0.05604685,87745.0,87744.0,0.00017094]
[1764038685915,0.04824685,87745.0,87744.0,0.02235094]
[1764038686518,0.04824685,87745.0,87744.0,0.04441094]
[1764038687524,0.04824685,87745.0,87744.0,0.05735094]
[1764038687717,0.04824685,87745.0,87744.0,0.00017094]
[1764038687919,0.04824685,87745.0,87744.0,0.02235094]
[1764038688227,0.04824685,87745.0,87744.0,0.04441094]
[1764038688422,0.04824685,87745.0,87744.0,0.05735094]
[1764038689321,0.04924685,87745.0,87744.0,0.04441094]
[1764038691327,0.04924685,87745.0,87744.0,0.00017094]
[1764038692833,0.0565011,87741.0,87740.0,0.04101575]
[1764038693022,0.0565011,87741.0,87732.0,0.06146796]
[1764038693023,0.0565022,87733.0,87732.0,0.06146796]
[1764038693215,0.06125905,87733.0,87732.0,0.06146796]
[1764038693422,0.0451,87731.0,87730.0,0.06146796]
[1764038693621,0.0451,87731.0,87729.0,0.06146796]
[1764038693622,0.0565025,87730.0,87729.0,0.06146796]
[1764038693930,0.0451,87726.0,87725.0,0.08364796]
[1764038694228,0.04729803,87726.0,87725.0,0.10570796]
[1764038694427,0.04985685,87726.0,87725.0,0.04424]
[1764038699128,0.04544,87722.0,87721.0,0.02299094]
[1764038699334,0.42240045,87722.0,87721.0,0.04428094]
[1764038701431,0.42240045,87722.0,87721.0,0.07498733]
[1764038702328,0.42240045,87722.0,87721.0,0.04428094]
[1764038705528,0.41099685,87722.0,87721.0,0.04428094]
[1764038706131,0.36555685,87722.0,87721.0,0.04428094]
[1764038706328,0.32835882,87722.0,87721.0,0.04428094]
[1764038706929,0.00255882,87722.0,87721.0,0.04428094]
[1764038708840,0.04561027,87738.0,87737.0,0.04411]
[1764038709140,0.0478083,87738.0,87737.0,0.04411]
[1764038709340,0.0478083,87738.0,87737.0,0.10552376]
[1764038709533,0.0023683,87738.0,87737.0,0.11692536]
[1764038709734,0.00017027,87738.0,87737.0,0.11692536]
[1764038709933,0.00117027,87738.0,87737.0,0.0555116]
[1764038710231,0.40624,87758.0,87757.0,0.055509]
[1764038710446,0.40843803,87758.0,87757.0,0.055509]
[1764038710834,0.04763803,87758.0,87757.0,0.055509]
[1764038713343,0.02535803,87758.0,87757.0,0.055509]
[1764038713543,0.04858803,87758.0,87757.0,0.055509]
[1764038713952,0.04858803,87758.0,87757.0,0.04411]
[1764038716248,0.3608,87769.0,87768.0,0.04366]
[1764038716942,0.36299803,87769.0,87768.0,0.04366]
[1764038717343,0.00219803,87769.0,87768.0,0.40446]
[1764038717845,0.01124512,87788.0,87769.0,0.0113974]
[1764038718042,0.01124512,87788.0,87780.0,0.04366]
[1764038718043,0.04536,87781.0,87780.0,0.04366]
[1764038718248,0.04755803,87781.0,87780.0,0.04366]
[1764038718946,0.00219803,87781.0,87780.0,0.04366]
[1764038719737,0.04755803,87781.0,87780.0,0.04366]
[1764038720045,0.04755803,87781.0,87780.0,0.02237]
[1764038720238,0.04855803,87781.0,87780.0,0.04366]
[1764038720440,0.02632803,87781.0,87780.0,0.04366]
[1764038720739,0.04955803,87781.0,87780.0,0.04366]
[1764038721644,0.0567564,87777.0,87776.0,0.3608]
[1764038721949,0.04536,87770.0,87769.0,0.04383094]
[1764038722152,0.04755803,87770.0,87769.0,0.04383094]
[1764038722540,0.02432803,87770.0,87769.0,0.04383094]
[1764038723042,0.04755803,87770.0,87769.0,0.04383094]
[1764038723652,0.001,87777.0,87776.0,0.04366]
[1764038723653,0.02313,87777.0,87776.0,0.04366]
[1764038723840,0.02432803,87777.0,87776.0,0.04366]
[1764038724453,0.02432803,87777.0,87776.0,0.0550566]
[1764038725046,0.00319803,87777.0,87776.0,0.0550566]
[1764038725239,0.00419803,87777.0,87776.0,0.4158566]
[1764038727250,0.002,87777.0,87776.0,0.4158566]
[1764038728246,0.04955803,87777.0,87776.0,0.40446]
[1764038729048,0.02413,87777.0,87776.0,0.40446]
[1764038729349,0.002,87777.0,87776.0,0.40446]
[1764038732243,0.002,87777.0,87776.0,0.43499013]
[1764038732552,0.04736,87777.0,87776.0,0.4350025]
[1764038732742,0.04955803,87777.0,87776.0,0.58434]
[1764038732949,0.04955803,87777.0,87776.0,0.40446]
[1764038733844,0.002,87777.0,87776.0,0.40446]
[1764038734245,0.002,87777.0,87776.0,0.4350025]
[1764038735045,0.002,87777.0,87776.0,0.40446]
[1764038735759,0.02413,87777.0,87776.0,0.40446]
[1764038735947,0.002,87777.0,87776.0,0.40446]
[1764038737549,0.00013291,87777.0,87776.0,0.40446]
[1764038739154,0.00013291,87777.0,87776.0,0.46586197]
[1764038739454,0.0567544,87793.0,87777.0,0.0113963]
[1764038739648,0.05895243,87793.0,87792.0,0.08570269]
[1764038739851,0.05895243,87793.0,87792.0,0.04366]
[1764038740762,0.05995243,87793.0,87792.0,0.04366]
[1764038741258,0.0690251,87787.0,87786.0,0.04086425]
[1764038741448,0.0690261,87780.0,87778.0,0.04086425]
[1764038741652,0.0557363,87778.0,87777.0,0.02145]
[1764038741855,0.05793433,87778.0,87777.0,0.02145]
[1764038742055,0.05793433,87778.0,87777.0,0.08341425]
[1764038743160,0.05793433,87778.0,87777.0,0.04255]
[1764038743969,0.05793433,87778.0,87777.0,0.0834714]
[1764038744164,0.04434,87777.0,87776.0,0.3608]
[1764038744356,0.04653803,87777.0,87776.0,0.3608]
[1764038744757,0.04653803,87777.0,87776.0,0.40335]
[1764038745167,0.04653803,87777.0,87776.0,0.04255]
[1764038756763,0.04653803,87777.0,87768.0,0.3608]
[1764038756764,0.0545274,87770.0,87768.0,0.3608]
[1764038756964,0.05672543,87770.0,87760.0,0.3608]
[1764038757372,0.05672543,87770.0,87768.0,0.06140653]
[1764038758058,0.05672543,87770.0,87767.0,0.06140653]
[1764038758773,0.05672543,87770.0,87766.0,0.06140653]
[1764038759072,0.05672543,87770.0,87765.0,0.06140653]
[1764038760667,0.05672543,87770.0,87769.0,0.03439844]
[1764038760874,0.05672543,87770.0,87769.0,0.05541844]
[1764038761374,0.04532803,87770.0,87769.0,0.05541844]
[1764038762466,0.00219803,87770.0,87769.0,0.05541844]
[1764038762661,0.00219803,87770.0,87769.0,0.11682497]
[1764038762870,0.00219803,87770.0,87769.0,0.47762497]
[1764038763071,0.00219803,87770.0,87769.0,0.41621844]
[1764038763265,0.0545253,87786.0,87785.0,0.04385]
[1764038763465,0.04313,87785.0,87784.0,0.04086769]
[1764038763776,0.0545255,87784.0,87783.0,0.04086769]
[1764038764074,0.05672353,87784.0,87783.0,0.08471769]
[1764038764274,0.05672353,87784.0,87783.0,0.04385]
[1764038765168,0.05502,87774.0,87773.0,0.10515153]
[1764038765366,0.06861483,87774.0,87773.0,0.10515153]
[1764038765567,0.00219803,87774.0,87773.0,0.04385]
[1764038766270,0.02344803,87774.0,87773.0,0.04385]
[1764038769377,0.00219803,87774.0,87773.0,0.04385]
[1764038769878,0.02344803,87774.0,87773.0,0.04385]
[1764038770577,0.04532803,87774.0,87773.0,0.04385]
[1764038770774,0.0561174,87770.0,87769.0,0.38281094]
[1764038770977,0.05831543,87770.0,87769.0,0.40415094]
[1764038771468,0.05831543,87770.0,87769.0,0.04335094]
[1764038773376,0.05831543,87770.0,87769.0,0.00017094]
[1764038775983,0.04691803,87770.0,87769.0,0.04335094]
[1764038776678,0.05831543,87770.0,87769.0,0.04335094]
[1764038778778,0.39831543,87770.0,87769.0,0.04335094]
[1764038778982,0.11831543,87770.0,87769.0,0.04335094]
[1764038780887,0.10691803,87770.0,87769.0,0.40415094]
[1764038781878,0.10691803,87770.0,87769.0,0.10480757]
[1764038782081,0.10691803,87770.0,87769.0,0.06162757]
[1764038782281,0.10691803,87770.0,87769.0,0.00017094]
[1764038784589,0.04691803,87770.0,87769.0,0.04335094]
[1764038785482,0.04691803,87770.0,87769.0,0.1048166]
[1764038786081,0.04691803,87770.0,87769.0,0.04335094]
[1764038789489,0.05981803,87770.0,87769.0,0.04335094]
[1764038790592,0.05981803,87770.0,87769.0,0.02201094]
[1764038790890,0.05981803,87770.0,87769.0,0.00017094]
[1764038791377,0.05981803,87770.0,87769.0,0.04117485]
[1764038792289,0.05981803,87770.0,87769.0,0.09575235]
[1764038792989,0.05981803,87770.0,87769.0,0.04335094]
[1764038793192,0.05981803,87770.0,87769.0,0.04117689]
[1764038793385,0.05981803,87770.0,87769.0,0.00017094]
[1764038793586,0.04472,87757.0,87756.0,0.06146566]
[1764038793787,0.04691803,87757.0,87756.0,0.02184]
[1764038794090,0.04691803,87757.0,87756.0,0.04318]
[1764038798793,0.04691803,87757.0,87756.0,0.10466016]
[1764038799788,0.04691803,87757.0,87756.0,0.08332016]
[1764038799981,0.0113992,87756.0,87753.0,0.06148016]
[1764038800186,0.00219803,87754.0,87752.0,0.07287986]
[1764038800490,0.00219803,87754.0,87753.0,0.40398]
[1764038800695,0.04489094,87765.0,87764.0,0.04318]
[1764038800883,0.04708897,87765.0,87764.0,0.10463219]
[1764038801283,0.00236897,87765.0,87764.0,0.04318]
[1764038803791,0.00017094,87765.0,87764.0,0.04318]
[1764038803989,9.4e-07,87765.0,87764.0,0.04318]
[1764038804189,0.54234784,87780.0,87779.0,0.04527]
[1764038804383,0.04648803,87780.0,87779.0,0.0566662]
[1764038804587,0.05788413,87780.0,87779.0,0.0566662]
[1764038805096,0.05788413,87780.0,87779.0,0.04527]
[1764038805594,0.05888413,87780.0,87779.0,0.04527]
[1764038809191,0.0113967,87775.0,87774.0,0.04527]
[1764038809396,0.0556871,87772.0,87771.0,0.02301094]
[1764038809596,0.05788513,87772.0,87771.0,0.04544094]
[1764038811504,0.05788513,87772.0,87771.0,0.02301094]
[1764038812100,0.05788513,87772.0,87771.0,0.04544094]
[1764038813295,0.05788513,87772.0,87771.0,0.00017094]
[1764038813498,0.48788513,87772.0,87771.0,0.00017094]
[1764038814000,0.48788513,87772.0,87771.0,0.03089807]
[1764038814191,0.48788513,87772.0,87771.0,0.00017094]
[1764038815000,0.48888513,87772.0,87771.0,0.00017094]
[1764038817806,0.48788513,87772.0,87771.0,0.00017094]
[1764038818099,0.48888513,87772.0,87771.0,0.00017094]
[1764038820703,0.0558079,87766.0,87765.0,0.03072713]
[1764038820896,0.44800593,87766.0,87765.0,0.03072713]
[1764038821393,0.0531,87762.0,87759.0,3e-08]
[1764038821601,0.0558111,87741.0,87740.0,0.00014198]
[1764038821798,0.07800913,87741.0,87740.0,0.00014198]
[1764038821989,0.07800913,87741.0,87740.0,0.04264198]
[1764038822194,0.0891998,87741.0,87740.0,0.04264198]
[1764038822390,0.07800913,87741.0,87740.0,0.04264198]
[1764038823694,0.07800913,87741.0,87740.0,0.04364198]
[1764038825607,0.07800913,87741.0,87740.0,0.04464198]
[1764038826009,0.07800913,87741.0,87740.0,0.04364198]
[1764038826402,0.05800913,87741.0,87740.0,0.04264198]
[1764038827697,0.02471803,87741.0,87740.0,0.04264198]
[1764038827906,0.00219803,87741.0,87740.0,0.04264198]
[1764038828405,0.05800913,87741.0,87740.0,0.04264198]
[1764038830204,0.04660803,87741.0,87740.0,0.04264198]
[1764038830404,0.00219803,87741.0,87740.0,0.04264198]
[1764038830611,0.00219803,87741.0,87740.0,0.10410018]
[1764038831108,0.00017094,87749.0,87748.0,0.04435]
[1764038831305,0.00090361,87749.0,87748.0,0.05794823]
[1764038832205,0.3608,87760.0,87759.0,0.04435]
[1764038832408,0.3608,87760.0,87759.0,0.04654803]
[1764038833499,0.3608,87763.0,87762.0,0.05734]
[1764038833704,0.3608,87763.0,87762.0,0.05953803]
[1764038834209,0.0113968,87774.0,87768.0,0.01299]
[1764038834411,0.38304,87779.0,87768.0,0.01299]
[1764038834412,0.3608,87779.0,87778.0,0.04435]
[1764038834612,0.0554354,87786.0,87785.0,0.04435]
[1764038834908,0.0554354,87786.0,87785.0,0.04654803]
[1764038835604,0.0554354,87786.0,87785.0,0.00219803]
[1764038836009,0.0554366,87776.0,87775.0,0.40515]
[1764038836216,0.0554366,87776.0,87775.0,0.40734803]
[1764038838412,0.0554366,87776.0,87775.0,0.04654803]
[1764038838613,0.0554366,87776.0,87775.0,0.04435]
[1764038839111,0.04404,87776.0,87775.0,0.04654803]
[1764038839318,0.3608,87778.0,87777.0,0.04435]
[1764038839615,0.3608,87778.0,87777.0,0.04654803]
[1764038840916,0.3618,87778.0,87777.0,0.04654803]
[1764038842916,0.40584,87778.0,87777.0,0.04654803]
[1764038843619,0.0554372,87771.0,87770.0,0.04452094]
[1764038843917,0.0554372,87771.0,87770.0,0.02420897]
[1764038844116,0.0554372,87771.0,87770.0,0.04671897]
[1764038844511,0.0554372,87771.0,87770.0,0.04452094]
[1764038844706,0.3054372,87771.0,87770.0,0.00017094]
[1764038845620,0.6662372,87771.0,87770.0,9.4e-07]
[1764038846510,0.6672372,87771.0,87770.0,9.4e-07]
[1764038847215,0.6662372,87771.0,87770.0,9.4e-07]
[1764038847412,0.4172372,87771.0,87770.0,9.4e-07]
[1764038847611,0.4172372,87771.0,87770.0,0.04435094]
[1764038848419,0.4172372,87771.0,87770.0,0.02184094]
[1764038848619,0.3731972,87771.0,87770.0,9.4e-07]
[1764038849122,0.3618,87771.0,87770.0,0.04654897]
[1764038849310,0.3836,87771.0,87770.0,0.04654897]
[1764038849513,0.40584,87771.0,87770.0,0.04654897]
[1764038850018,0.0228,87771.0,87770.0,0.04654897]
[1764038850520,0.0113965,87777.0,87776.0,0.05734]
[1764038850521,0.0554365,87777.0,87776.0,0.05734]
[1764038850721,0.0554365,87777.0,87776.0,0.05953803]
[1764038850916,0.04404,87777.0,87776.0,0.05953803]
[1764038851528,0.36097,87779.0,87778.0,0.04435]
[1764038851720,0.36097,87779.0,87778.0,0.04654803]
[1764038852920,0.36197,87779.0,87778.0,0.04654803]
[1764038855726,0.00117,87779.0,87778.0,0.04654803]
[1764038856826,0.00117,87779.0,87778.0,0.08738957]
[1764038857224,0.00117,87779.0,87778.0,0.04654803]
[1764038859116,0.04521,87779.0,87778.0,0.04654803]
[1764038859321,0.00117,87779.0,87778.0,0.04654803]
[1764038860123,0.00117,87779.0,87778.0,0.10800623]
[1764038860330,0.00117,87779.0,87778.0,0.1079072]
[1764038860331,0.02297,87779.0,87778.0,0.1079072]
[1764038860831,0.02297,87779.0,87778.0,0.04754803]
[1764038861131,0.02197,87779.0,87778.0,0.04754803]
[1764038861330,0.02197,87779.0,87778.0,0.04854803]
[1764038861830,0.02197,87779.0,87778.0,0.04754803]
[1764038862033,0.02197,87779.0,87778.0,0.04654803]
[1764038862232,0.00017,87779.0,87778.0,0.1079072]
[1764038862526,0.00017,87779.0,87778.0,0.04654803]
[1764038863732,0.02287,87779.0,87778.0,0.04754803]
[1764038863924,0.0446,87779.0,87778.0,0.08643109]
[1764038864123,0.0446,87779.0,87778.0,0.10922109]
[1764038864324,0.00017,87779.0,87778.0,0.04682803]
[1764038866532,0.00017,87779.0,87778.0,0.04782803]
[1764038866929,0.00017,87779.0,87778.0,0.04882803]
[1764038867233,0.0446,87779.0,87778.0,0.04882803]
[1764038867433,0.0446,87779.0,87778.0,0.04782803]
[1764038867625,0.0446,87779.0,87778.0,0.04882803]
[1764038868035,0.0446,87779.0,87778.0,0.04782803]
[1764038868232,0.0446,87779.0,87778.0,0.04882803]
[1764038868434,0.02287,87779.0,87778.0,0.04882803]
[1764038868628,0.02287,87779.0,87778.0,0.04682803]
[1764038868825,0.02287,87779.0,87778.0,0.04782803]
[1764038870426,0.00017,87779.0,87778.0,0.04782803]
[1764038872728,0.0446,87779.0,87778.0,0.04782803]
[1764038873427,0.0446,87779.0,87778.0,0.04682803]
[1764038873630,0.0446,87779.0,87778.0,0.04782803]
[1764038874137,0.0446,87779.0,87778.0,0.04682803]
[1764038880939,0.0446,87779.0,87778.0,0.05822433]
[1764038881340,0.0446,87779.0,87778.0,0.1195682]
[1764038883738,0.0446,87779.0,87778.0,0.1081719]
[1764038885342,0.0446,87779.0,87778.0,0.04682803]
[1764038888137,0.0446,87779.0,87778.0,0.08725701]
[1764038891441,0.0446,87779.0,87778.0,0.04626803]
[1764038891641,0.02287,87779.0,87778.0,0.04626803]
[1764038891838,0.04478,87779.0,87778.0,0.04626803]
[1764038892240,0.04478,87779.0,87778.0,0.08724964]
[1764038893651,0.04478,87779.0,87778.0,0.04626803]
[1764038895850,0.04478,87779.0,87778.0,0.08724964]
[1764038896049,0.04478,87779.0,87778.0,0.04626803]
[1764038896443,0.04478,87779.0,87778.0,0.05766433]
[1764038896853,0.04478,87779.0,87778.0,0.04626803]
[1764038897649,0.04478,87779.0,87778.0,0.1076119]
[1764038898355,0.04478,87779.0,87778.0,0.04626803]
[1764038899156,0.04478,87779.0,87778.0,0.05766433]
[1764038899450,0.04478,87779.0,87778.0,0.1190082]
[1764038900154,0.04478,87779.0,87778.0,0.1076119]
[1764038902254,0.04478,87779.0,87778.0,0.04626803]
[1764038902548,0.02287,87779.0,87778.0,0.04626803]
[1764038902750,0.00017,87779.0,87778.0,0.04626803]
[1764038904759,0.0113949,87789.0,87788.0,0.04462]
[1764038905060,0.0557545,87793.0,87792.0,0.0560144]
[1764038905254,0.0557545,87793.0,87792.0,0.05821243]
[1764038905449,0.0557545,87793.0,87792.0,0.04681803]
[1764038906559,0.0557545,87793.0,87792.0,0.06368366]
[1764038906753,0.0557545,87793.0,87792.0,0.00219803]
[1764038907956,0.0557545,87793.0,87792.0,0.02397803]
[1764038908156,0.0557545,87793.0,87792.0,0.04681803]
[1764038908356,0.0557545,87793.0,87792.0,0.02397803]
[1764038908556,0.0557545,87793.0,87792.0,0.04681803]
[1764038911761,0.0557545,87793.0,87792.0,0.02397803]
[1764038912355,0.0557545,87793.0,87792.0,0.04681803]
[1764038919458,0.04436,87793.0,87792.0,0.04681803]
[1764038921762,0.04436,87793.0,87792.0,0.00219803]
[1764038922059,0.04436,87793.0,87792.0,0.04674803]
[1764038923058,0.02245,87793.0,87792.0,0.04674803]
[1764038923265,0.0337843,87794.0,87793.0,0.04455]
[1764038923559,0.0555843,87794.0,87793.0,0.04674803]
[1764038923767,0.0555843,87794.0,87793.0,0.08771819]
[1764038924367,0.0555843,87794.0,87793.0,0.04674803]
[1764038925265,0.0337831,87803.0,87802.0,0.04455]
[1764038925460,0.1255831,87803.0,87802.0,0.04674803]
[1764038926271,0.0555822,87810.0,87805.0,0.0246727]
[1764038926469,0.0755822,87810.0,87809.0,0.04674803]
[1764038926772,0.0537822,87810.0,87809.0,0.04674803]
[1764038927071,0.0755822,87810.0,87809.0,0.04674803]
[1764038927861,0.0765822,87810.0,87809.0,0.04674803]
[1764038928765,0.0547822,87810.0,87809.0,0.04674803]
[1764038928965,0.04339,87810.0,87809.0,0.07747515]
[1764038929166,0.04339,87810.0,87809.0,0.04674803]
[1764038929375,0.04339,87810.0,87809.0,0.07745703]
[1764038929874,0.04339,87810.0,87809.0,0.04674803]
[1764038930265,0.001,87810.0,87809.0,0.04674803]
[1764038930972,0.02339,87810.0,87809.0,0.04674803]
[1764038931372,0.001,87810.0,87809.0,0.04674803]
[1764038934078,0.04519,87810.0,87809.0,0.04674803]
[1764038934571,0.02339,87810.0,87809.0,0.04674803]
[1764038934762,0.04519,87810.0,87809.0,0.07743851]
[1764038935266,0.04519,87810.0,87809.0,0.04674803]
[1764038941577,0.001,87810.0,87809.0,0.04674803]
[1764038941876,0.04455,87810.0,87809.0,0.04674803]
[1764038944871,0.001,87810.0,87809.0,0.08771915]
[1764038945179,0.3939906,87823.0,87822.0,0.04359]
[1764038945481,0.4157406,87823.0,87822.0,0.04578803]
[1764038945977,0.40435,87823.0,87822.0,0.04578803]
[1764038946172,0.4157405,87823.0,87822.0,0.04578803]
[1764038946371,0.4167405,87823.0,87822.0,0.04578803]
[1764038946564,0.40535,87823.0,87822.0,0.04578803]
[1764038946877,0.001,87823.0,87822.0,0.04578803]
[1764038949174,0.0549388,87837.0,87836.0,0.04359]
[1764038949476,0.0849388,87837.0,87836.0,0.04578803]
[1764038950073,0.0528388,87837.0,87836.0,0.04578803]
[1764038950472,0.0642276,87837.0,87836.0,0.04578803]
[1764038950777,0.0652276,87837.0,87836.0,0.04578803]
[1764038950972,0.0538388,87837.0,87836.0,0.04578803]
[1764038952072,0.031,87837.0,87836.0,0.04578803]
[1764038952478,0.001,87837.0,87836.0,0.04578803]
[1764038952865,0.0346887,87837.0,87836.0,0.04578803]
[1764038953674,0.0576087,87837.0,87836.0,0.04578803]
[1764038956773,0.0576087,87837.0,87836.0,0.00219803]
[1764038956974,0.0544101,87826.0,87825.0,0.02318]
[1764038957171,0.4152101,87826.0,87825.0,0.02537803]
[1764038957372,0.4152101,87826.0,87825.0,0.04776803]
[1764038959476,0.4352101,87826.0,87825.0,0.02537803]
[1764038959776,0.4352101,87826.0,87825.0,0.00219803]
[1764038960175,0.4352101,87826.0,87825.0,0.02537803]
[1764038960375,0.4352101,87826.0,87825.0,0.04776803]
[1764038960575,0.4152101,87826.0,87825.0,0.04776803]
[1764038961883,0.40382,87826.0,87825.0,0.04776803]
[1764038962380,0.0330994,87832.0,87831.0,0.04557]
[1764038962574,0.0113894,87832.0,87831.0,0.04776803]
[1764038962780,0.0544094,87832.0,87831.0,0.04776803]
[1764038963582,0.0554094,87832.0,87831.0,0.04776803]
[1764038964388,0.02271,87832.0,87831.0,0.04776803]
[1764038964774,0.001,87832.0,87831.0,0.04776803]
[1764038964976,0.001,87832.0,87831.0,0.40856803]
[1764038966384,0.3608,87847.0,87846.0,0.05944]
[1764038966584,0.011385,87865.0,87862.0,0.04557]
[1764038966585,0.02171,87863.0,87862.0,0.04557]
[1764038966880,0.40382,87880.0,87879.0,0.04557]
[1764038967086,0.04302,87880.0,87879.0,0.04776803]
[1764038967682,0.40382,87888.0,87887.0,0.04557]
[1764038967887,0.40382,87888.0,87887.0,0.04776803]
[1764038968182,0.3608,87888.0,87887.0,0.04776803]
[1764038968780,0.40382,87888.0,87887.0,0.00219803]
[1764038969485,0.40382,87888.0,87887.0,0.04776803]